Workbook

Sheet SIP Process & Cover Sheet
A48: NAME OF SCHOOL/PRINCIPAL: | F48: Glenn Hills High School/Dr. Don Quarles
A51: NAME OF DISTRICT/SUPERINTENDENT: | F51: Richmond County, Dr. Angela Pringle
A58: DIVISION OF SCHOOL AND DISTRICT EFFECTIVENESS
A59: Advancing Leadership çTransforming Schools
A60: All required components of the Title I Schoolwide and Targeted Assistance are included in this template.
A63: SIGNATURES:
A66: Superintendent: | G66: Date:
A68: Principal Supervisor: | G68: Date:
A70: Principal: | G70: Date:
A72: Title 1 Director: | G72: Date:
A74: (Title 1 Schools only)
A76: Title I only
A78: The Letter of Intent for Title I Schoolwide was submitted on
A81: Please indicate the programs that are consolidated in this plan:
A90: School Name: | C90: Glenn Hills High School
A95: Date: | C95: 2019-05-31
A98: Planning Committee Members
A101: Name | D101: Position/Role | F101: Signature
A102: Donald Quarles | D102: Principal
A104: Valeria Smith | D104: Assistant Principal
A106: Kathy Johnson | D106: Teacher
A108: Bernard Bowman | D108: Teacher
A110: Dawn Diver | D110: Teacher
A112: Lisa Ingle | D112: Teacher
A114: Bridgette Jackson | D114: Teacher
A116: Sheree Ingram | D116: Teacher
A118: Barbara Isaac | D118: Teacher
A120: Kassandra Cunningham | D120: Family Facilitator
A122: Dr. T. | D122: Teacher
D124: Parent
D126: Parent
D128: Parent
A130: Naiely Resto | D130: Student (9th-10th Representative)
A132: Kalise Vanloo | D132: Student (11th-12th Representative)
A134: Note** All parents are invited and more students are encouraged to participate in the schoolwide planning process.
A137: Response to SWP 3: | C137: Coordination and integration of federal, state, and local services and
A138: programs, including programs supported under this Act, violence prevention programs, nutrition
A139: programs, housing programs, Head Start, adult education, vocational and technical education, and
A140: job training.
A142: Funding Source | D142: How funds will be used
A143: Federal Funds: Title I Funds
A144: Include any Title I paid employee
A145: And everything you plan on
A146: purchasing this year.
A147: State Funds | D147: Funds will be used for professional learning.
A148: Reduced Class Size (If applicable)
A149: School Improvement Grant (If applicable)
A150: Local Professional Learning Funds | D150: District coordinates activities
A151: Grants
A153: Funding Source and Resources provided:
B154: ● FTE Teachers, paraprofessionals, other staff, instructional materials and supplies,
B155: software, expendable equipment, technology, professional learning.
B156: ● Title II-Professional Learning Opportunities.
B157: ● Title III-Specifically for ELL students - instructional materials and supplies,
B158: technology, teachers, software.
B159: ● IDEA - Specifically for IDEA students - instructional materials and supplies,
B160: technology, teachers, paraprofessionals, software.
B161: ● Carl D Perkins - N/A
B162: ● EIP - Teachers for identified EIP students
B163: ● McKinney Vento - Services for Homeless students
B164: ● Title I - instructional materials, software, technology, professional learning, parental
B165: involvement, materials/supplies and resource books that support CCGPS/GSE
B166: instruction.

Sheet 18-19 SIP Evaluation
A1: Initiative #1 Evaluation
A2: Initiative #1 Description:
A3: Goal Area: | B3: High Academic Achievement and Success for All
A4: Performance Objective: | B4: Increase student performance at or above grade level
A5: Initiative #1: | B5: Comparing the 2017-2018 EOC to the 2018-2019 EOC school year data, Glenn Hills High School will increase the percentage of students performing at the proficient level or above on all EOCs by 3%.
A6: What was the need being addressed by this initiative? | B6: For all students to perform at or above grade level on all academic courses and assessments
A7: What was the reason for selecting this initiative? | B7: The majority of our students are performing at the beginning or developing levels on all of the EOC assessments
A8: What were the intended results of this initiative? | B8: To increase the percentage of student performing at the proficient level or above on all EOCs by 3%
A9: Initiative #1 Implementation Evaluation
A10: Were there any barriers to implementing this intiative? Why or why not? | B10: Yes, the barriers to implementing this initiative were: Lack of student attendance, Students' low Lexile Levels, Lack of consistent and pervasive high quality instruction, and Failure to actively monitor and assess each action step.
A11: Were there any barriers to maintaining this initiative through the expected timeframe? Why or why not? | B11: Yes, the barriers to maintaining this initative through the expected timeframe included: 1) an increased in the number of new/waiver teachers coupled with their lack of experience and knowledge of understanding the curriuculm and continuously and consistently facilitating effective rigours instruction, 2) the sporadic and inconsistencyof student attendance at school, and 3) the inconsistency of most teachers' alignment of instruction, activities, and rigourous assessments aligned with curriculum standards.
A12: Are changes needed to improve the full implementation of this initiative? What changes? | B12: Yes, the changes needed to improve the full implementation of this initiative include: 1) revamping collaborative planning using the GADOE rubric for conducting effective collabortive planning meetings coupled with increasing the time needed for collaboration and 2) full implementation of PBIS to encourage more student attendance and less disciplinary occurances.
A13: Initiative #1 Effectiveness Evaluation
A14: What data were collected to monitor and evaluate the effectiveness of this initiative? | B14: 2017-2018 EOC Data and 2018-2019 EOC Data, Assessment Cycle Data, Benchmark Data, Professional Learning, focus walks, teacher observational data, and TKES
A15: Citing specific data points, was the initiative successful in addressing the need? Why or why not? | B15: No, the initiative was not successful because we didn't meet the projected goal of increasing the percentage of students performing at the proficient level or above by 3% on all EOCs (according to 2018 and 2019 EOC results).
A16: Will you continue with this initiative in the next school year? If so, what changes need to be made to improve its effectiveness? | B16: No, the School Improvement Office suggested altering initiative to focus on collaborative planning and use the EOC scores as an effective measure of initiative progress.
A17: Initiative #2 Evaluation
A18: Initiative #2 Description:
A19: Goal Area: | B19: High Academic Achievement and Success for All
A20: Performance Objective: | B20: Increase student performance at or above grade level
A21: Initiative #2: | B21: Comparing the 2017-2018 CCR Initial Level to the 2018-2019 CCR (College Career Ready) End-of-Year Level (Achieve 3000), the percentage of all students performing at the meet or exceeds levels will increase by 3% as measured by Lexile.
A22: What was the need being addressed by this initiative? | B22: The need addressed by this initiative was to increase reading comprehension and EOC performance to on or above grade level.
A23: What was the reason for selecting this initiative? | B23: The reason for selecting this initiative was to ensure that our students are reading on or above grade level.
A24: What were the intended results of this initiative? | B24: The intended result of this initiative was to increase Lexile levels of all students to where they are able to read comprehensively, write coherently, speak fluently, and think critically about written information across all content areas.
A25: Initiative #2 Implementation Evaluation
A26: Were there any barriers to implementing this intiative? Why or why not? | B26: Yes, there were barriers to implementing this initiative. While an implementation protocol was developed and implemented, it may not have been effectively monitored to evaluate this initiative. There was a lack of technology (computer labs/carts). We also experienced technology issues with running some of the software.
A27: Were there any barriers to maintaining this initiative through the expected timeframe? Why or why not? | B27: Yes, there were barriers to maintaining this initiative. The timeframe for implementing the intervention programs (Achieve 3000) was contingent upon funding which wasn't received until later in the school year.
A28: Are changes needed to improve the full implementation of this initiative? What changes? | B28: Yes, we need to have access to Achieve 3000 at the beginning of the school year, we need additional computers, we need to implement an Achieve 3000 protocol for all teachers to use with fidelity, and computer issues need to be addressed in a timely fashion.
A29: Initiative #2 Effectiveness Evaluation
A30: What data were collected to monitor and evaluate the effectiveness of this initiative? | B30: Achieve 3000 Data, Reading Inventory Data, Student Reading Interest Survey Data, Teacher Reading Interest Survey Data
A31: Citing specific data points, was the initiative successful in addressing the need? Why or why not? | B31: The Achieve 3000 2016-2017 and 2017-2018 reports were used. This initiative was successful because we achieved growth (____%) of students reading at or above grade level; however, we ______ achieve the desired results of a 3% increase.
A32: Will you continue with this initiative in the next school year? If so, what changes need to be made to improve its effectiveness? | B32: Yes, however, the focus of the initiative will target reading comprehension and Achieve 3000 data will be used to effectively measure initiative progress.
A33: Initiative #3 Evaluation
A34: Initiative #3 Description:
A35: Goal Area: | B35: Operational Effectiveness
A36: Performance Objective: | B36: Establish and monitor policies and procedures for effectiveness
A37: Initiative #3: | B37: By the end of the 2018-2019 school year, Glenn Hills High School's climate score will improve from one star to at least three stars.
A38: What was the need being addressed by this initiative? | B38: For all stakeholders to feel safe and secure in an orderly environment where quality teaching and learning can occur.
A39: What was the reason for selecting this initiative? | B39: The reason for selecting this initiative was to ensure that the established school wide discipline plan is enforced with fidelity and to foster a positive school climate that promotes students' ability to learn.
A40: What were the intended results of this initiative? | B40: Improve the overall effectiveness of the school to benefit all stakeholders and improve the school climate score from one star to three stars.
A41: Initiative #3 Implementation Evaluation
A42: Were there any barriers to implementing this intiative? Why or why not? | B42: Yes, the barriers to implementing this iniative were lack of consistency through monitoring and enforcing the school wide discipline plan, attendance policy and tardy policy, and analyzing survey data and implementing next steps
A43: Were there any barriers to maintaining this initiative through the expected timeframe? Why or why not? | B43: Yes, we should have had a more precise and effective school wide monitoring plan, attendance plan, and tardy policy ready at the start of the school year. We also should have provided for immediate interventions for violators of any of the these plans and policies.
A44: Initiative #3 Effectiveness Evaluation
A45: What data were collected to monitor and evaluate the effectiveness of this initiative? | B45: Discipline Data, CTO Student Survey Data, CTO Parent Survey Data, CTO Personnel Survey Data
A46: Citing specific data points, was the initiative successful in addressing the need? Why or why not? | B46: Posivite progress has been made during the 2018-2019 school year to address the initiative needs. Discipline Data: During the 2018-19 school year, there was a significant decline in discipline referrals from semester 1 to semester 2. CTO Data: During 2015-16 and 2016-17 Georgia Climate survey, students ranked the statement, "I have worried about other students hurting me" the lowest question. On the CTO Student survey, students ranked, "I have felt unsafe at school or on my way to or from school" as the lowest question. During 2015-16 and 2016-17 Georgia Climate survey, students ranked the statement, "My parents, or other adults at my home, think that it is important for me to graduate from high school" the highest. On the CTO Student survey, students ranked, "Honesty is an important trait to me" as the highest. Regarding school climate, the students also ranked, "My school sets clear rules for behavior" well on the CTO survey.
A47: Will you continue with this initiative in the next school year? If so, what changes need to be made to improve its effectiveness? | B47: Yes, however, GHHS will integrate the PBIS program in the action steps to improve the overall effectiveness of initiative.

Sheet 20-21 Needs Assessment
A1: CCRPI | B1: 2016-2017 | C1: 2017-2018 | D1: 2018-2019 | E1: 3-yr Avg | F1: Data Sources
A2: CCRPI Score - School | B2: 57.5 | C2: 51.7 | D2: 50.1 | E2: =IFERROR(AVERAGE(B2:D2),"") -> 53.1 | F2: GADOE portal
A3: CCRPI Score - District | B3: 63.1 | C3: 68.3 | D3: 59.3 | E3: =AVERAGE(B3:D3) -> 63.56666667
A4: CCRPI Score - State | B4: 72.9 | C4: 76.6 | D4: 75.9 | E4: =AVERAGE(B4:D4) -> 75.13333333
A6: Georgia Milestones | B6: 2016-2017 | C6: 2017-2018 | D6: 2018-2019 | E6: 3-yr Avg | F6: Data Source
A7: % Developing Learner or Above - 9th Grade Lit | B7: 50 | C7: 52 | D7: 61.5 | E7: =IFERROR(AVERAGE(B7:D7),"") -> 54.5 | F7: SLDS
A8: % Developing Learner or Above - American Lit | B8: 45.1 | C8: 40 | D8: 36.4 | E8: =IFERROR(AVERAGE(B8:D8),"") -> 40.5
A9: % Developing Learner or Above - Algebra I | B9: 25.2 | C9: 23 | D9: 21.8 | E9: 23.33333333
A10: % Developing Learner or Above - Geometry | B10: 19.8 | C10: 22 | D10: NA | E10: 20.9
A11: % Developing Learner or Above - Physical Science | B11: 0 | C11: NA | D11: NA | E11: 0
A12: % Developing Learner or Above - Biology | B12: 15 | C12: 9 | D12: 27.3 | E12: 17.1
A13: % Developing Learner or Above - US History | B13: 20.3 | C13: 26 | D13: 30.5 | E13: 25.6
A14: % Developing Learner or Above - Economics | B14: 22.2 | C14: 16 | D14: 0 | E14: 12.73333333
A16: % Proficient or Distinguished Learner - 9th Grade Lit | B16: 13.7 | C16: 12 | D16: 21.2 | E16: =IFERROR(AVERAGE(B16:D16),"") -> 15.63333333
A17: % Proficient or Distinguished Learner - American Lit | B17: 9.3 | C17: 7 | D17: 7.3 | E17: =IFERROR(AVERAGE(B17:D17),"") -> 7.866666667
A18: % Proficient or Distinguished Learner - Algebra I | B18: 0.5 | C18: 1 | D18: 1.8 | E18: 1.1
A19: % Proficient or Distinguished Learner - Geometry | B19: 1.8 | C19: 2 | D19: NA | E19: 1.9
A20: % Proficient or Distinguished Learner - Physical Science | B20: 0 | C20: NA | D20: NA | E20: 0
A21: % Proficient or Distinguished Learner - Biology | B21: 5.3 | C21: 0 | D21: 6 | E21: 3.766666667
A22: % Proficient or Distinguished Learner - US History | B22: 2.2 | C22: 5 | D22: 5.2 | E22: 4.133333333
A23: % Proficient or Distinguished Learner - Economics | B23: 5.4 | C23: 2 | D23: 0 | E23: 2.466666667
A25: College and Career | B25: 2016-2017 | C25: 2017-2018 | D25: 2018-2019 | E25: 3-yr Avg | F25: Data Source
A26: Lexile Measure greater than or equal to 1155 on 9th Grade Literature EOC (%) | B26: 33 | C26: 35 | D26: 36 | E26: =IFERROR(AVERAGE(B26:D26),"") -> 34.66666667 | F26: Georgia Milestones/SLDS
A27: Lexile Measure greater than or equal to 1285 on American Lit EOC (%) | B27: 26 | C27: 17 | D27: 29 | E27: =IFERROR(AVERAGE(B27:D27),"") -> 24 | F27: Georgia Milestones/SLDS
A28: % Graduates earning credit(s) for accelerated enrollment (ACCEL, Dual HOPE Grant, Move on When Ready, Early College, Advanced Placement, or International Baccalaureate courses) | B28: 89 | C28: 59 | D28: 55 | E28: 67.66666667 | F28: School-level Data
A29: Percent of graduates completing a CTAE pathway, advanced academic pathway, IB Career Related Programme, fine arts pathway, or world language pathway. | B29: 3.3 | C29: 7.7 | D29: 6.2 | E29: 5.733333333
A30: Number of Students who took the SAT | B30: 33 | C30: 17 | D30: 27 | E30: 25.66666667 | F30: School-level Data
A31: % of Students Scoring 480+ out of 800 on Reading/Writing and 530+ out of 800 on Math on the SAT | C31: 6 | D31: 3 | E31: 4.5 | F31: School-level Data
A32: Number of Students who took the ACT | B32: 16 | C32: 25 | D32: 11 | E32: 17.33333333 | F32: School-level Data
A33: % of Students Scoring 22+ on the ACT | B33: 0 | C33: 0 | D33: 0 | E33: 0 | F33: School-level Data
A34: Reflection Questions: How are student Lexiles used instructionally to improve student growth? How are Lexiles communicated to parents to ensure they understand what these scores mean? How are Lexiles communicated to students and used for goal setting? What training do teachers receive to enhance their professional knowledge about Lexiles? Does your professional learning for Lexile instruction include all content teachers? How can Media Specialist support increased Lexile measures?
A35: Achieve 3000 is used to instructionally improve student growth to provide differentiated instructed based on individual Lexile Levels. Some teachers used the Lexile Level to group according to student ability levels. At a Parent Night Lexile Scores were discussed with parents. Some teachers conference with students on their Lexile Level upon completion of the Initial Assessment. Some teachers use the Tracking Sheet to monitor changes in Lexile Levels. Teachers didn't receive training on Lexile Levels. The media Specialist can go into the Language Arts class and conduct book talks according to student's Lexile Level.
A37: Reflection Questions: How many students are currently enrolled in Dual Enrollment? How are students made aware of Dual/Joint Enrollment opportunities and how do you ensure academic counseling is provided? Do representatives come on site? Do you hold parent meeting and provide other awareness opportunities for parents and students? Which students can potentially take advantage of MOWR opportunities? What are the barriers to participation and eligibility for MOWR? How are you supporting MOWR students to ensure academic success in these courses?
A38: Five students were enrolled in Dual/Joint Enrollment this school year. During advisement that's conducted by Guidance, students are made aware of Dual Enrollment opportunities. Representatives from each institution come on site to meet with students and counselors concerning dual enrollment Guidance Counselors conduct parent meetings with the representative, student candidate for dual enrollment, and the parents. College representatives have come on site during parent nights and parent meetings to discuss dual enrollment with parents and students. Upper classmen (juniors and seniors) can take advantage of MOWR. Barriers to participation and elibgibility for MOWR are minimal. Counselors strategically target students who will be successful in the program, and we recieve grant money to ensure transportation for each candidate to and from their perspective institutions. We are supporting MOWR by guidance counselors continuously collaborating with college professors and consistently meeting with students to ensure that they are on track to receive the college credit and to receive any needed academic support (tutors, supplemental resources, etc).
A40: Reflection Questions: Are you providing resources to support preparation for the SAT/ACT? What are these resources?
A43: Student Profile | B43: 2016-2017 | C43: 2017-2018 | D43: 2018-2019 | E43: 3-yr Avg | F43: Data Source
A44: Total Student Enrollment | B44: 723 | C44: 666 | D44: 590 | E44: =IFERROR(AVERAGE(B44:D44),"") -> 659.6666667 | F44: Infinite Campus (Student Information->Reports->Enrollment Summary
A45: Students Absent 6+ Days (%) | B45: 59.7 | C45: 73.2 | D45: 80 | E45: =IFERROR(AVERAGE(B45:D45),"") -> 70.96666667 | F45: Infinite Campus (RCSS Custom Reports->Attendance->Attendance by Min Nbr of Days
A46: Discipline Incidences | B46: 504 | C46: 1366 | D46: 829 | E46: 899.6666667 | F46: Infinite Campus->Behavior->Reports->Incident. Click on List by Year to see other school years.
A47: Reflection Questions: What is your schools attendance plan? How do you address attendance issues? Phone call? Notes home? Home visit? Do you use your parent facilitator or designee? Who monitors attendance and how it affects your CCRPI score? Are there any rewards systems in place for attendance? Are these rewards monthly? Quarterly? Yearly?
A48: We follow the Richmond County School attendance protocol as far as absences for students 15 and under. We address attendance through, phone calls, Shout Point, certified letters are mailed, school and social work visits, and referral to DJJ. The Assistance Principal, Parent Facilitator, Guidance Counselor, Family Service Facilitator, Attendance Clerk, and social worker monitor attendance and how it affects our CCRPI score. These persons, along with select teachers make up the ART (Attendance Review Team. Quarterly celebrations are implemented to recognize student with good attendance. We also recognize student attendance with certificates and trophies during honors day. We celebrate good student attendance randomly (any day) by rewarding students in class and over the intercom.
A50: Faculty & Staff Profile (2018-2019) | B50: 1 to 3 Years | C50: 4-10 Years | D50: 11-20 Years | E50: 21+ Years | F50: Data Source
A51: Current Principal's # of Years in Position | B51: 2 | F51: School-level Data
A52: Teaching Staff # of Years in Current School | B52: 28 | C52: 23 | D52: 7 | E52: 6 | F52: School-level Data
A53: Teaching Staff # of Years in Profession | B53: 18 | C53: 14 | D53: 18 | E53: 10 | F53: School-level Data
B54: 2016-2017 | C54: 2017-2018 | D54: 2018-2019 | E54: 3-yr Avg | F54: Data Source
A55: % Administrator Absent 6+ Days | B55: 0 | C55: 1 | D55: 1 | E55: =IFERROR(AVERAGE(B55:D55),"") -> 0.6666666667 | F55: School-level Data
A56: % Teachers Absent 6+ Days | B56: 1 | C56: 33 | D56: 53.5 | E56: =IFERROR(AVERAGE(B56:D56),"") -> 29.16666667 | F56: School-level Data
A57: % Staff Absent 6+ Days | B57: 1 | C57: 25 | D57: 72 | E57: 32.66666667 | F57: School-level Data
A58: Reflection Questions: Do you monitor teacher/staff attendance? Are any teachers/staff chronically absent? Do these teachers/staff miss Mondays and Fridays more so than others?
A59: Teacher/staff attendance is monitored on a daily basis. We follow a protocol between teacher, assistant principal, and bookkeeper to track absences and reasons absent. We have about 5% of teacher/staff that are chronically absent. There is a pattern that indicates Mondays and Fridays are days missed more than others.
A62: TKES Standards (%) (2017-2018) | B62: Level I | C62: Level II | D62: Level III | E62: Level IV | F62: Data Source
A63: 1. Professional Knowledge | B63: 0 | C63: 4.65 | D63: 76.74 | E63: 18.6 | F63: School-level Data
A64: 2. Instructional Planning | B64: 0 | C64: 13.95 | D64: 81.4 | E64: 4.65 | F64: School-level Data
A65: 3. Instructional Strategies | B65: 0 | C65: 6.98 | D65: 81.4 | E65: 11.63 | F65: School-level Data
A66: 4. Differentiated Instruction | B66: 0 | C66: 13.95 | D66: 83.72 | E66: 2.33 | F66: School-level Data
A67: 5. Assessment Strategies | B67: 0 | C67: 5 | D67: 86 | E67: 9 | F67: School-level Data
A68: 6. Assessment Uses | B68: 0 | C68: 11.63 | D68: 83.72 | E68: 4.65 | F68: School-level Data
A69: 7. Positive Learning Environment | B69: 0 | C69: 9.3 | D69: 83.72 | E69: 6.95 | F69: School-level Data
A70: 8. Academically Challenging Environment | B70: 0 | C70: 30.23 | D70: 69.77 | E70: 0 | F70: School-level Data
A71: 9. Professionalism | B71: 0 | C71: 4.64 | D71: 65.12 | E71: 30.23 | F71: School-level Data
A72: 10. Communication | B72: 0 | C72: 2.33 | D72: 81.4 | E72: 16.28 | F72: School-level Data
A74: School Culture Data Profile | B74: 2016-2017 | C74: 2017-2018 | D74: 2018-2019 | E74: 3-yr Avg | F74: Data Source
A75: Student Mobility (%) | B75: 30.5 | C75: 32.5 | D75: 35.7 | E75: =IFERROR(AVERAGE(B75:D75),"") -> 32.9 | F75: Governor's Office of Student Achievement. http://gosa.georgia.gov/downloadable-data
A76: In-School Suspension (%) | B76: 16.1 | C76: 34.3 | D76: 26.5 | E76: =IFERROR(AVERAGE(B76:D76),"") -> 25.63333333 | F76: Infinite Campus->Behavior->Reports->Resolution. Click on Detail in Report Type.
A77: Out of School Suspension (%) | B77: 38.9 | C77: 51.1 | D77: 44.8 | E77: 44.93333333 | F77: Infinite Campus->Behavior->Reports->Resolution. Click on Detail in Report Type.
A78: # of Tribunal Hearings | B78: 49 | C78: 29 | D78: 18 | E78: 32
A79: Question from the Georgia Student Health Survey with the lowest rating (Highest percentage of Strongly Disagree/Disagree or Sometimes/Never) | B79: I have worried about other students hurting me. | C79: I have worried about other students hurting me. | D79: Someone has bullied me by making fun of me or spreading rumors about me. | E79: N/A | F79: http://www.gadoe.org/Curriculum-Instruction-and-Assessment/Curriculum-and-Instruction/GSHS-II/Pages/GSHS-Results.aspx
A80: Question from the Georgia Student Health Survey with the highest rating (Highest percentage of Strongly Agree/Agree or Always/Often) | B80: My parents, or other adults at my home, think that it is important for me to graduate from high school. | C80: My parents, or other adults at my home, think that it is important for me to graduate from high school. | D80: My parents, or other adults at my home, think that it is important for me to graduate from high school. | E80: N/A | F80: http://www.gadoe.org/Curriculum-Instruction-and-Assessment/Curriculum-and-Instruction/GSHS-II/Pages/GSHS-Results.aspx
A81: Reflection Questions: How do out-of-school suspensions affect attendance? Do you have interventions in place that could replace suspensions as a form of punishment? What positive behavior reinforcement program or initiatives does your school have in place?
A82: Out-of-school suspensions have a negative effect on attendance. This year we required teachers use an in class protocol prior to referring students to the office (at times the referrals result in ISS - in school suspension), and we started the initial implementation of PBIS (meetings and trainings). We will start full implementation at the onset of the 2020-2021 school year.
A84: Reflection Questions: What is your school-wide discipline plan? Does the school wide discipline plan mirror board policy? What additional policy and procedures does your school have that are unique? Is your faculty and staff consistent with the school wide discipline plan? Are there any teachers that stand out that have had historical issues with discipline referrals? How is that teacher supported?
A85: We implemented a school wide discipline that was communicated to faculty, students, and parents. We developed a tiered discipline that included, but not limited to the following: teacher in class discipline plan, time out - buddy system, ISS, etc. Our discipline plan closely aligns with the board policy. Currently we have not developed an additional discipline policy that is unique to our school; however we will start the full implementation of PBIS on the onset of the 2020-2021 school year. Yes, there are about 3% of our teachers that stand out with issues related to discipline. These teachers were supported through individualized conferences, targeted interventions, and classroom management professional learning.
A87: Reflection Questions: What types of training have you offered to address student discipline? What types of training is needed to address student discipline? For students who are long term (5-10 day suspension/ alternative) suspended, how are they transitioned back in the school? How are you monitoring and supporting academics of the students who are chronically suspended?
A88: We provided school and district level training on classroom management for select classroom teachers. We also provided training to all teachers on our school wide discipline plan. We have assessed that we need additional training (classroom and behavior management, conflict resolution, and training to support special needs students) to address discipline. There's no protocol in place to transition students from long term suspension back in school; however, we are working on a protocol. We monitor and support students through the Cohort Monitoring Protocol, TAA, and through documentation for Rule 20. Students are also awarded the opportunity to receive missed assignments before and after the suspensions.
A90: Reflection Questions: What areas of concern are revealed in the Georgia Student Health Survey results? How does this relate to your School Climate Star Rating? How are these concerns addressed in your day-to-day operations? Do they represent gaps in your procedures or follow-through on your procedures? What needs to change to improve on these concerns?
A91: According to the survey results students are concerned with being treated fairly by adults in the building, treating each other with respect, taking pride in keeping the building clean, and the need to be recognized frequently for good behavior. There's a direct correlation between the school climate rating of one star and the survey. There are subtle attempts to address these concerns. The discipline committee celebrates positivie behavior quarterly. We adopted the SPARTAN BLUE motto (directly related to character, respect, and pride). There are, however, gaps in the consistently following through with procedures. Hopefully through the full implementation of PBIS and creating a positive culture and climate, we will improve our Climate rating to atleast 3 stars.
A93: Reflection Questions: Do the Georgia Student Health Survey results reveal any concerns with alcohol/drug abuse or self-harm? How are these concerns being addressed? What needs to change to improve on these concerns?
A94: According to the survey results students were more apt to respond to questions related to marijuana use as oppose to alcohol/drug abuse or self-harm. A community-based intervention (Straight-Out-The-Hood) provided support and incentives to address these concerns. We incorporated motivational speakers, counselors from Serenity, the Spartan Care Center, and counselors from guidance to address these needs. We need more education for and involvement from parents (wrap around services) to improve these concerns.
A97: Family and Community Engagement Data Profile | B97: 2016-2017 | C97: 2017-2018 | D97: 2018-2019 | E97: 3-yr Avg | F97: Data Source
A98: External Business/Community Partnerships (#) | B98: 4 | C98: 10 | D98: 10 | E98: =IFERROR(AVERAGE(B98:D98),"") -> 8 | F98: School-level Data
A99: Community Events (#) | B99: 0 | C99: 4 | D99: 6 | E99: =IFERROR(AVERAGE(B99:D99),"") -> 3.333333333 | F99: School-level Data
A100: School Events (#) | B100: 5 | C100: 11 | D100: 9 | E100: 8.333333333 | F100: School-level Data
A101: Parent Training Workshops (#) | B101: 0 | C101: 2 | D101: 0 | E101: 0.6666666667 | F101: School-level Data
A102: Curriculum Nights (#) | B102: 0 | C102: 1 | D102: 1 | E102: 0.6666666667 | F102: School-level Data
A104: Based on your data and the reflective questions, what are the three main initiatives that your school needs to focus on this school year?
A107: 1. For FY 21, GHHS will implement data driven best practices and rigourous instructional strategies aimed at a 15% increase in the number of 9th grade students who score proficient on the EOY Benchmark (ELA/Math) as compared to the BOY Benchmark.
A110: 2. GHHS will use a systematic collaborative planning process so that teachers will share an understanding of expectations for collaboration, assessment, and instruction as measured by the operational level defined by the GADOE High Impact Rubric.
A112: 3. By the end of the 2020-2021 school year, 80% of GHHS teachers will score as a Level III (Proficient) on Standard 7 (Positive Learning Environment) & Standard 8 (Academically Challenging Environment) as measeured by the Georgia Teacher Assessment of Performance Standards (TAPS).

Sheet Perf Measures
A2: School: | B2: Glenn Hills High School
A4: Principal: | B4: Dr. Johnnie M. Wright
A6: Date: | B6: 2020-07-31
A8: Performance Measure (with unit of measure) | F8: Baseline | G8: Actuals Year 1 | H8: Actual Year 2 | I8: Target Year 3 | J8: Actuals Year 3 | K8: Target Year 4 | L8: Actuals Year 4
F9: (2015-2016) | G9: (2016-2017) | H9: (2017-2018) | I9: (2018-2019) | J9: (2018-2019) | K9: (2019-2020) | L9: (2019-2020)
A10: Increase the graduation rate (4-year cohort) | F10: 0.798 | G10: 0.8602 | H10: 0.8 | I10: 0.918
A12: Increase the percentage of students scoring Proficient or above in 9th Grade Literature/American Literature EOCs | F12: 9th: 2.0% | G12: 9th: 13.7% | H12: 9th: 12% | I12: 9th: 15% | J12: 9th: | K12: 9th: | L12: 9th:
F13: Am Lit: 4.8% | G13: Am Lit: 9.3% | H13: Am Lit: 7% | I13: Am Lit: 10% | J13: Am Lit: | K13: Am Lit: | L13: Am Lit:
A14: Increase the percentage of students scoring Proficient or above in Algebra/Geometry EOCs | F14: Alg: 0.0% | G14: Alg:0.5% | H14: Alg:1% | I14: Alg:4% | J14: Alg: | K14: Alg: | L14: Alg:
F15: Geo:1.6% | G15: Geo:1.8% | H15: Geo: 1.9% | I15: Geo:4.9% | J15: Geo: | K15: Geo: | L15: Geo:
A16: Increase the percentage of students scoring Proficient or above in Biology/Physical Science EOCs | F16: Bio:1.9% | G16: Bio:5.3% | H16: Bio:0% | I16: Bio: 3% | J16: Bio: | K16: Bio: | L16: Bio:
F17: PhSci: 2% | G17: PhSci: N/A | H17: PhSci: N/A | I17: PhSci:N/A | J17: PhSci: | K17: PhSci: | L17: PhSci:
A18: Increase the percentage of students scoring Proficient or above in US History/Economics EOCs | F18: US Hist:2.9% | G18: US Hist:2.2% | H18: US Hist: 5% | I18: US Hist:8% | J18: US Hist: | K18: US Hist: | L18: US Hist:
F19: Econ:1.7% | G19: Econ:5.4% | H19: Econ:2% | I19: Econ:5% | J19: Econ: | K19: Econ: | L19: Econ:
A20: Increase the number of students participating in AP, IB, or Dual Enrollment | F20: AP/IB: | G20: AP/IB:83 | H20: AP/IB: 46 | I20: AP/IB: 56 | J20: AP/IB:65 | K20: AP/IB: | L20: AP/IB:
F21: Dual: | G21: Dual: 58 | H21: Dual:26 | I21: Dual: 30 | J21: Dual:5 | K21: Dual: | L21: Dual:
A22: Increase the CCRPI Score to Meet or Exceed the school's SWSS CCRPI Target
A25: Principal's Signature: | G25: School Council President's Signature:
A27: Leadership Team Member Signature: | G27: Leadership Team Member Signature:

Sheet Initiative 1
A2: Goal Area (Aligned to RCSS Strategy Map): | C2: Student Achievement and Success
A5: Performance Objective (Aligned to RCSS Strategy Map): | C5: Improve Early Literacy and Numeracy Skills
A8: Initiative 1 (SMART Goal): | C8: For FY 21, GHHS will implement data driven best practices and rigourous instructional strategies aimed at a 15% increase in the number of 9th grade students who score proficient on the EOY Benchmark (ELA/Math) as compared to the BOY Benchmark as measured by I-Ready..
A11: Evidence-Based Action Steps | E11: ESSA Linked Evidence (Insert URL) | F11: ESSA Evidence Level | G11: Leader Overseeing the Action Step | H11: Evidence the Leader will Collect | I11: Specific Timeline for Implementation | K11: Funding Source, Materials/Resources Needed
A13: Provide professional development and training on creating rigorous literacy based assignments and assessments aligned to all content areas | E13: https://ies.ed.gov/ncee/wwc/Intervention/803 | F13: promising | G13: AP of Instruction, Instructional Specialists, AU Rep | H13: Sign-in sheets, Agendas, List and examples of literacy strategies | I13: August, 2020 | K13: L4GA Grant, AU Liteacy Coach,
A15: Provide professional development and training on creating rigorous numeracy based assignments and assessments aligned to all content areas | E15: https://ies.ed.gov/ncee/wwc/Intervention/803 | F15: promising | G15: AP of Instruction, Instructional Specialists | H15: Sign-in sheets, Agendas, List and examples of literacy strategies | I15: August, 2020 | K15: Title I, Instructional Coach
A16: Facilitate and observe the implementation of rigorous literacy based assignments and assessments to all content areas | E16: https://ies.ed.gov/ncee/wwc/Intervention/759 | F16: Moderate | G16: AP of Instruction, Instructional Specialist | H16: Sign-in sheets, Agendas, List and examples of literacy strategies | I16: August, 2020 | K16: L4GA Grant, AU Liteacy Coach
A17: Facilitate and observe the implementation of rigorous numeracy based assignments and assessments to all content areas. | G17: AP of Instructon, Instructional Specialist | H17: Sign-in sheets, Agendas, List and examples of literacy strategies | I17: August, 2020 | K17: Title I, Instructional Coach
A18: Develop a protocol to analyze student work, assessement and data inside the Canvas platform. | G18: Instructional Specialists | H18: Copies of Protocol | I18: July, 2020 | K18: RESA and District Support
A20: Collect and analyze data from focus walks. | G20: AP of Instruction, Instructional Specialists, Leadership Team | H20: Focus Walk Data | I20: September 20-May 21 | K20: N/A
A22: Develop and implement an ELT program aimed at providing interventions in students' deficit areas for ELA and/or Math | G22: Instructional Specialists | H22: Data: Read 180;Cognitive Tutor; MAPS, Benchmark | I22: August, 2020 | K22: Title I
A24: Purchase research based intervention software aimed to address student deficit areas for ELA (Achieve3000) and/or Math (Math IXL) | E24: https://ies.ed.gov/ncee/wwc/Intervention/742 https://ies.ed.gov/ncee/wwc/Intervention/818 | F24: medium to large | G24: AP of Instruction, Instructional Specialists, AU Rep | H24: Data: Read 180;Cognitive Tutor; MAPS, Benchmark | I24: 2020-09-01 | K24: Title I
A26: Monitor the effectiveness of literacy strategies. | E26: https://ies.ed.gov/ncee/wwc/Intervention/759 | F26: Moderate | G26: AP of Instruction, Instructional Specialists, AU Rep | H26: Benchmark data, assessment exemplars, collaborative planning minutes | I26: Ongoing September 2020-May 2021 | K26: N/A
A28: Each content will create a minimum of two (2) common assessments aligned to our district pacing guide per grading period to be administered and scored using the tools in Canvas | G28: AP of Instruction, Instructional Specialists, AU Rep | H28: Benchmark data, assessment exemplars, collaborative planning minutes | I28: Ongoing September 2020-May 2021 | K28: N/A

Sheet Initiative 2
A2: Goal Area (Aligned to RCSS Strategy Map): | C2: High Performing Culture and Workforce
A5: Performance Objective (Aligned to RCSS Strategy Map): | C5: Enhance Professional Learning for All Employees
A8: Initiative 2 (SMART Goal): | C8: Over the course of the 2020-2021 school year all GHHS teachers will engage in weekly collaborative planning sessions that address research-based best practices to include student engagement, student performance, rigor, and differentiation at the operational level as defined by the GADOE Impact Rubric.
A11: Evidence-Based Action Steps | E11: ESSA Linked Evidence (Insert URL) | F11: ESSA Evidence Level | G11: Leader Overseeing the Action Step | H11: Evidence the Leader will Collect | I11: Specific Timeline for Implementation | K11: Funding Source, Materials/Resources Needed
A13: Establish a collaboration planning schedule/calendar for hosting face to face or virtual collaborative planning sessions. | E13: https://ies.ed.gov/ncee/wwc/Intervention/803 | F13: promising | G13: Dr. Wright | H13: Schedule and Professional Calendar | I13: 2020-08-01 | K13: N/A
A15: Establish collaboration planning teams & team leaders | E15: https://ies.ed.gov/ncee/wwc/Intervention/803 | F15: promising | G15: Ms V Smith,and Mrs. Hall | H15: Collaboration Planning Teams and team leaders Rosters | I15: 2020-08-01 | K15: N/A
A17: Develop protocols and norms for collaborative planning for face to face or virtual collaborative planning sessions. | E17: https://ies.ed.gov/ncee/wwc/Intervention/803 | F17: promising | G17: Ms. Smithand Mrs. Hall | H17: Copy of the Protocols and norms, sign-in sheet, agenda | I17: 2020-08-01 | K17: District, RESA Support
A19: Revise the collaborative planning template that includes reflective questions and digial learning opportunities for students. | E19: https://ies.ed.gov/ncee/wwc/Intervention/803 | F19: promising | G19: Instructional Team | H19: Template with reflective questions | I19: 2020-08-19 | K19: GADOE Resources
A21: Provide ongoing professional learning sessions on the following topics: Canvas, Maps, Turn it In, Revision Asssistant, Teams, Pearson (textbooks), Zooms, Google Classroom,Texas Instrument TI-84 calculators | E21: https://ies.ed.gov/ncee/wwc/Intervention/803 | F21: promising | G21: Ms. Smithand Mrs. Hall | H21: Collaborative Planning Artifacts, lesson plans, observational data | I21: Weekly Tuesday and Wednesdays- Collaborative Planning during planning | K21: District, RESA Support
A23: Develop differentiated lessons/ instructional strategies utilizing the tools found in Canvas. | E23: https://ies.ed.gov/ncee/wwc/Intervention/803 | F23: promising | G23: Ms V Smith, Mrs. Hall | H23: Collaborative Planning Artifacts, lesson plans, observational data | I23: Weekly Tuesday and Wednesdays- Collaborative Planning during planning | K23: District, RESA Support

Sheet Initiative 3
A2: Goal Area (Aligned to RCSS Strategy Map): | C2: Culture and Climate
A5: Performance Objective (Aligned to RCSS Strategy Map): | C5: Ensure a Positive Learning and Working Environment
A8: Initiative 3 (SMART Goal): | C8: By the 2020-2021 school year, 80% of all GHHS teachers will score as a Level III (Proficient) on Standard 7 (Positive Learning Enviornment) & Standard 8 (Academically Challenging Environment) as measured by the Georgia Teacher Assessment of Performance Standards (TAPS).
A11: Evidence-Based Action Steps | E11: ESSA Linked Evidence (Insert URL) | F11: ESSA Evidence Level | G11: Leader Overseeing the Action Step | H11: Evidence the Leader will Collect | I11: Specific Timeline for Implementation | K11: Funding Source, Materials/Resources Needed
A13: Teachers As Advisors: Develop a refined protocol for TAA sessions and continue to monitor. Allow for grade level teacher communication. | G13: Mr. Pitter, Mrs. Vaughn, Mrs. Sheppard | H13: Protocol, data from TAA sessions | I13: 2020-09-01 | K13: GADOE resources
A15: Conduct SWIS Training for PBIS team and Registrar | E15: Bradshaw, C. P., Mitchell, M. M., & Leaf, P. J. (2010). Examining the Effects of Schoolwide Positive Behavioral Interventions and Supports on Student Outcomes. Journal of Positive Behavior Interventions, 12(3), 133-148. doi: 10.1177/1098300709334798 | F15: Strong | G15: Mr. Pitter and Mr. Priestley | H15: Sign in Sheet/Emails | I15: 2020-09-01 | K15: GADOE resources
A16: Monitor discipline through SWIS and Infinite Campus. Provide monthly updates on noted trends. | E16: Bradshaw, C. P., Mitchell, M. M., & Leaf, P. J. (2010). Examining the Effects of Schoolwide Positive Behavioral Interventions and Supports on Student Outcomes. Journal of Positive Behavior Interventions, 12(3), 133-148. doi: 10.1177/1098300709334798 | F16: Strong | G16: Mr. Pitter and Mr. Priestley | H16: PBIS Program, Data Reports | I16: End of the Month, 2020-2021 | K16: Infinite Campus, PBISApps, & SWIS Suite
A18: Provide school-based mentors at a 3:1 ratio to support induction teaches with weekly meetings with a defined focus on virtual learning and nd classroom managemnt/engagement. | G18: Ms. Smith and Mrs. Hall | H18: PBIS Program, Data Reports | I18: Ongoing August 2020-May 2021 | K18: N/A
A20: Implement PBIS school wide protocol to include checkpoints. | E20: https://ies.ed.gov/ncee/wwc/Intervention/1241 | F20: promising | G20: Ms. S. Donigan and Mr. Pitter | H20: Protocol, Data Reports | I20: Ongoing August 2020-May 2021 | K20: PBISApps & SWIS Suite, Title I
A22: Develop weekly mentor/mentee "check-in" and assignment of "follow-up" plan on designated tasks to be recorded in shared OneDrive folder and monitored and sujpported by the Glenn Hills High School administrative team. | G22: Mrs. Hall and Ms. Smith | H22: Smart Mentor notebooks, meeting minutes, OneDrive folder | I22: Ongoing August 2020-May 2021 | K22: N/A
A24: Develop GHHS PBIS Matrix and posters | E24: Bradshaw, C. P., Mitchell, M. M., & Leaf, P. J. (2010). Examining the Effects of Schoolwide Positive Behavioral Interventions and Supports on Student Outcomes. Journal of Positive Behavior Interventions, 12(3), 133-148. doi: 10.1177/1098300709334798 | F24: Strong | G24: Mr. Pitter and Mrs. Donigan | H24: Matrix Posters | I24: 2020-09-01 | K24: Title I
A25: Develop a virtual library of professional learning sessions on foucsed topics created for and shared with all induction teachers. Each session is to be followed with a scheduled virtual Q and A session. | G25: Mrs. Hall and Ms. Smith | H25: Videos, calendar invites, virtual sign-in sheets, agendas | I25: Ongoing August 2020-May 2021 | K25: N/A
A27: Develop protocol to recognize positive student behavior/attendance/garades | E27: Bradshaw, C. P., Mitchell, M. M., & Leaf, P. J. (2010). Examining the Effects of Schoolwide Positive Behavioral Interventions and Supports on Student Outcomes. Journal of Positive Behavior Interventions, 12(3), 133-148. doi: 10.1177/1098300709334798 | F27: Strong | G27: PBIS Committee | H27: Leadership Team Agendas / Minutes, Discipline Team Data, PBIS Team Data | I27: Monthly, 2019-2020 Discipline Team: 1st meeting, PBIS 2nd meeting | K27: Title I

Sheet Rationale
A1: Written Rationale Revised 07/31/2020
A4: All interventions, programs, strategies, activities, software, staff, etc. must include the evidence-based level in the SIP and budget/justification.
A6: ESSA recognizes four levels of evidence:
A7: 1. Strong: evidence from at least 1 well-designed and well-implemented experimental study
A8: 2. Moderate: evidence from at least 1 well-designed and well-implemented quasi-experimental study
A9: 3. Promising: evidence with a well-designed and well-implemented correlational study with statistical controls for selection bias.
A10: 4. Written Rationale: evidence buiding based on high quality research findings or positive evaluation that such activity, strategy, or intervention
A11: is likely to improve student outcomes or other relevant outcomes inside the school for which it was written.
A13: The following links can be utilized for evidence:
A14: http://www.bestevidence.org/search.cfm
A15: https://ies.ed.gov/ncee/wwc/
A16: https://evidenceforessa.org
A17: https://www2.ed.gov/policy/elsec/leg/essa/guidanceuseseinvestment.pdf
A19: If an action step in the SIP does not have an evidence level of Strong, Moderate, or Promising, the Rationale must be written in the forms below.
A21: Rationale #1
A22: Initiative: | C22: For FY 21, GHHS will implement data driven best practices and rigourous instructional strategies aimed at a 15% increase in the number of 9th grade students who score proficient on the EOY Benchmark (ELA/Math) as compared to the BOY I-Ready.
A24: Action Step: | C24: Provide professional development and training on creating rigorous literacy and numeracy based assignements and assessments to all content areas.
A26: Current Research to Support this Action Step | C26: According to Best Evidence Encylcopedia, using one-to-one and small-group tutoring, cooperative lerning, whole-school approaches including organizational reforms such as teacher teams, and writing-focused approaches showed positive outcomes for struggling readers. Also structured strategies, and personalized and group/personalization rotation approaches also showed postivie outcomes.
A31: Expected Results | C31: That there will be a 15% increase in the number of 9th graders will demonstrate proficiency on the EOY Benchmark assessment (growth) in reading and math when compared to their BOY Benchmark assessment.
A33: How will Success be Measured? | C33: Success will be measured by analyzing student performance on the RCSS Benchmark assessment.
A35: Data Points | C35: Beginning of Year | D35: 0.33 | F35: Goal | G35: 0.75 | I35: Actual
A37: Status Checkpoint Dates: | C37: Sept 2019, Dec 2019, August 2020, May 2021
A39: End-of-Year Results and Reflection
A52: Rationale #2
A53: Initiative: | C53: Over the course of the 2020-2021 school year all GHHS teachers will engage in weekly collaborative planning sessions that address research-based best practices to include digital learning platform Canvas, student engagement, student performance, rigor, and differentiation at the operational level as defined by the GADOE Impact Rubric.
A55: Action Step: | C55: Develop protocols and norms for collaborative planning.
A57: Current Research to Support this Action Step | C57: According to NCTM, effective professional collaboration is critcal for changing how we think about our own continual development and improvement as teachers and for driving school improvement. Evidence indicates that differences in instruction and student learning within a school are oftern twice as large as differences between schools. Collective profesional expertise, when leveraged through professional collaboation by teachers in a grade level or subject-based team, has the power to dramatically impact the practice of all teachers and the effectiveness of the school. To improve instruction and student learning, collaborative teams must focus on planning and improving instruction, as well as responding to individual student needs in a timely manner.
A62: Expected Results | C62: To suppport continual improvement of effective instructional practice and to ensure that teachers respond to each eand every student's instructional needs in real time, lesson-by-lesson, and unit by unit, in order to advance the learning of each and every student.
A64: How will Success be Measured? | C64: Success will be measured by the GADOE high impact rubric of collaborative planning
A66: Data Points | C66: Beginning of Year | D66: Emerging | F66: Goal | G66: Operations | I66: Actual
A68: Status Checkpoint Dates: | C68: Sept 2019, Dec 2019, August 2020, May 2021 (collabartive planning audit dates by RESA)
A70: End-of-Year Results and Reflection
A83: Rationale #3
A84: Initiative: | C84: For the FY 21, GHHS will decrease the number of behavior infractions from FY19 by 15% through the implementation of a Positive Behavior Intervention and Support (PBIS) initiative.
A86: Action Step: | C86: Implement PBIS protocal to include checkpoints.
A88: Current Research to Support this Action Step | C88: According to the Bazelon Center for Mental Health, research has consistently found that problem behaviors and a disruptive school climate interfere with academci progress. School wide PBIS changes factors that are associated with greater academic acheivement including: increased time in school (behavior problems are effectively prevented or addressed before they result in suspensions), more time for teaching and learning (classroom behavior improves), and greater academic engagement (students experience a positive and orderly enviornment that is not beset b frequent disruptions).
A93: Expected Results | C93: To improve School Climate Star Rating from 2 stars to at least 3 stars.
A95: How will Success be Measured? | C95: PBIS protocol and checkpoints
A97: Data Points | C97: Beginning of Year | D97: 1 start | F97: Goal | G97: 3 stars | I97: Actual
A99: Status Checkpoint Dates: | C99: Monthly data review and checkpoints (Sept 2020 - May 2021)
A101: End-of-Year Results and Reflection
A114: Rationale #4
A115: Initiative:
A117: Action Step:
A119: Current Research to Support this Action Step
A124: Expected Results
A126: How will Success be Measured?
A128: Data Points | C128: Beginning of Year | F128: Goal | I128: Actual
A130: Status Checkpoint Dates:
A132: End-of-Year Results and Reflection
A145: Rationale #5
A146: Initiative:
A148: Action Step:
A150: Current Research to Support this Action Step
A155: Expected Results
A157: How will Success be Measured?
A159: Data Points | C159: Beginning of Year | F159: Goal | I159: Actual
A161: Status Checkpoint Dates:
A163: End-of-Year Results and Reflection

Sheet PL Plan
A1: Professional Learning Plan to Support School Improvement
A4: Supporting Initiative # | B4: Professional Learning Strategy | F4: Specific Professional Learning Timeline | G4: Estimated Cost, Funding Source, and/or Resources | H4: Person(s)/Position Responsible | I4: Monitoring Teacher Implementation of Professional Learning | K4: Evidence/Data of Impact on Student Learning
A6: 1 | B6: Introduce, Teach, and Model how to align rigorous instructional activities and assessments to literacy standards | F6: Aug. 22; Oct. 15 | G6: L4GA grant | H6: Instructional Coaches & Augusta Univ. Rep. | I6: Teacher questions and answers and practice on how to implement within the classroom | K6: Increased collaboration among content area teachers during planning: improved lesson plans, better reading comprehension
A9: 1 | B9: Model and Practice aligning rigorous instructional activities and assessments to literacy standards | F9: Aug. 23-27; Oct. 16-18 | G9: L4GA grant | H9: Instructional Coaches & Augusta Univ. Rep. & Teachers | I9: Teacher questions and answers and practice on how to implement within the classroom | K9: Increased collaboration among content area teachers during planning: improved lesson plans, better reading comprehension
A12: 1 | B12: Facilitate planning to implement aligned rigorous instructional activities and assessments into lesson plans | F12: Aug. 22-30; Oct. 16-24 | G12: L4GA grant | H12: Instructional Coaches & Augusta Univ. Rep. & Teachers | I12: Teacher questions and answers and practice on how to implement within the classroom | K12: Increased collaboration among content area teachers during planning: improved lesson plans, better reading comprehension
A15: 1 | B15: Observe the implementation of aligned rigorous instructional activities and assessments in classrooms to ensure fidelity of instruction | F15: Sept. 3-6; Oct. 21-30 | G15: N/A | H15: Instructional Coaches & Augusta Univ. Rep. & Admin | I15: Focus Walk, Awareness Walk, ELEOT observations , Student work samples, Teacher assessments | K15: Increase in the % of students meeting and/or exceeding Lexile indicators for specific grade level and improving reading comprehension and improving performance on Benchmarks, I-Ready, ACHIEVE 3000 & Reading Inventory
A18: 1 | B18: Monitor the effectiveness of aligned rigorous instructional activities and assessments on student learning | F18: Sept. 11; Oct. 30 | G18: N/A | H18: AP of Instruction, Instructional Coaches | I18: Benchmarks, ACHIEVE 3000, Reading Inventory, I-ready (math) Teacher Assessments | K18: Increase in the % of students meeting and/or exceeding Lexile indicators for specific grade level and improving reading comprehension and improving performance on Benchmarks, I-Ready, ACHIEVE 3000 & Reading Inventory
A21: 1 | B21: Introduce, Teach, and Model Close Read & Vocabulary Circle Maps as instructional strategies. Define CLose Read & Vocaulary Circle Maps, explain purpose, use a text to model Close Read & Vocabulary Cirlce Map | F21: Aug. 2, 2019 | G21: N/A | H21: Instructional Coaches | I21: Teacher questions and answers and practice on how to implement within the classroom | K21: Increased collaboration among content area teachers during planning: improved lesson plans, better reading comprehension
A24: 1 | B24: Model and Practice Close Read & Vocabulary Cirlce Maps allowing teachers to practice | F24: Aug. 6--9 | G24: N/A | H24: Instructional Coaches & Augusta Univ. Rep. & Teachers | I24: Teacher questions and answers and practice on how to implement within the classroom | K24: Increased collaboration among content area teachers during planning: improved lesson plans, better reading comprehension
A27: 1 | B27: Facilitate planning to implement Close Read & Vocabulary Circle Maps into lesson plans | F27: Aug. 6-15 | G27: N/A | H27: Instructional Coaches & Augusta Univ. Rep. & Teachers | I27: Teacher questions and answers and practice on how to implement within the classroom | K27: Increased collaboration among content area teachers during planning: improved lesson plans, better reading comprehension
A30: 1 | B30: Observe the implementation of Close Read & Vocabulary Circle Maps in classroom to ensure fidelity of instruction | F30: Aug. 19-23 | G30: N/A | H30: Instructional Coaches & Augusta Univ. Rep. & Admin | I30: Focus Walk, Awareness Walk, ELEOT observations , Student work samples | K30: Increase in the % of students meeting and/or exceeding Lexile indicators for specific grade level and improving reading comprehension and improving performance on Benchmarks, I-Ready, ACHIEVE 3000 & Reading Inventory
A33: 1 | B33: Monitor the effectiveness of Close Read & Vocabulary Circle Maps on student learning | F33: Aug. 28 | G33: N/A | H33: AP of Instruction, Instructional Coaches | I33: Benchmarks, ACHIEVE 3000, Reading Inventory, I-ready (math) Teacher Assessments | K33: Increase in the % of students meeting and/or exceeding Lexile indicators for specific grade level and improving reading comprehension and improving performance on Benchmarks, I-Ready, ACHIEVE 3000 & Reading Inventory
A36: 1 | B36: Introduce, teach, and model Read-Aloud(Define Read-Aloud, explain purpose, use a text to model Read Aloud) | F36: Sept. 18 | G36: N/A | H36: Instructional Coaches | I36: Teacher questions and answers and practice on how to implement within the classroom | K36: Increased collaboration among content area teachers during planning: improved lesson plans, better reading comprehension
A39: 1 | B39: Model and Practice Read-Aloud Using the context text to model Read-Aloud allowing teachers to practice | F39: Sept. 19-24 | G39: N/A | H39: Instructional Coaches & Augusta Univ. Rep. & Teachers | I39: Teacher questions and answers and practice on how to implement within the classroom | K39: Increased collaboration among content area teachers during planning: improved lesson plans, better reading comprehension
A42: 1 | B42: Observe the implementation of Read-Alouds in classroom to ensure fidelity of instruction | F42: Sept. 23-Oct. 4 | G42: N/A | H42: Instructional Coaches & Augusta Univ. Rep. & Admin | I42: Focus Walk, Awareness Walk, ELEOT observations , Student work samples | K42: Increase in the % of students meeting and/or exceeding Lexile indicators for specific grade level and improving reading comprehension and improving performance on Benchmarks, I-Ready, ACHIEVE 3000 & Reading Inventory
A45: 1 | B45: Facilitate planning to implement Read-Alouds into lesson plans (Using smae test to model Read-Alouds allwing teachers to practice. | F45: Sept. 23-27 | G45: N/A | H45: Instructional Coaches & Augusta Univ. Rep. & Teachers | I45: Teacher questions and answers and practice on how to implement within the classroom | K45: Increased collaboration among content area teachers during planning: improved lesson plans, better reading comprehension
A48: 1 | B48: Monitor implementation of Read-Alouds on student learning | F48: Oct. 9 | G48: N/A | H48: AP of Instruction, Instructional Coaches | I48: Benchmarks, ACHIEVE 3000, Reading Inventory, I-ready (math) Teacher Assessments | K48: Increase in the % of students meeting and/or exceeding Lexile indicators for specific grade level and improving reading comprehension and improving performance on Benchmarks, I-Ready, ACHIEVE 3000 & Reading Inventory
A51: 1 | B51: Introduce, teach, and model RACE/RICE as an instructional strategy (Define RACE/RICE, explain purpose, use a text to model RACE/RICE) | F51: Nov. 14 | G51: N/A | H51: Instructional Coaches | I51: Teacher questions and answers and practice on how to implement within the classroom | K51: Increased collaboration among content area teachers during planning: improved lesson plans, better reading comprehension
A54: 1 | B54: Model and Practice RACE/RICE (Using the context text to model RACE/RICE allowing teachers to practice) | F54: Nov. 15-19 | G54: N/A | H54: Instructional Coaches & Augusta Univ. Rep. & Teachers | I54: Teacher questions and answers and practice on how to implement within the classroom | K54: Increased collaboration among content area teachers during planning: improved lesson plans, better reading comprehension
A57: 1 | B57: Observe the implementation of RACE/RICE in classroom to ensure fidelity of instruction | F57: Nov. 18-Dec. 6 | G57: N/A | H57: Instructional Coaches & Augusta Univ. Rep. & Admin | I57: Focus Walk, Awareness Walk, ELEOT observations , Student work samples | K57: Increase in the % of students meeting and/or exceeding Lexile indicators for specific grade level and improving reading comprehension and improving performance on Benchmarks, I-Ready, ACHIEVE 3000 & Reading Inventory
A60: 1 | B60: Facilitate planning to implement RACE/RICE into lesson plans (Using smae test to model RACE/RICE allowing teachers to practice. | F60: Nov. 18-22 | G60: N/A | H60: Instructional Coaches & Augusta Univ. Rep. & Teachers | I60: Teacher questions and answers and practice on how to implement within the classroom | K60: Increased collaboration among content area teachers during planning: improved lesson plans, better reading comprehension
A63: 1 | B63: Monitor the implementation of RACE/RICE on student learning | F63: Dec. 11 | G63: N/A | H63: AP of Instruction, Instructional Coaches | I63: Benchmarks, ACHIEVE 3000, Reading Inventory, I-ready (math) Teacher Assessments | K63: Increase in the % of students meeting and/or exceeding Lexile indicators for specific grade level and improving reading comprehension and improving performance on Benchmarks, I-Ready, ACHIEVE 3000 & Reading Inventory
A66: 3 | B66: Teachers As Advisors: Develop a refined protocol for TAA sessions and continue to monitor. Allow for grade level teacher communication. | F66: 2019-09-03 | G66: N/A | H66: Instructional Team and Guidance Counselors | I66: TAA Focus Walks and Observational Data | K66: Increase the acquisition and development of 21st Century Skills that will lead all students to high-skill, high-demand, and high-wage jobs
A68: This PL plan will be fully implement 1st semester and continuosly monitored and improved 2nd semester Jan - May 2021.

Sheet Lists (hidden)
A1: High Academic Achievement and Success for All
A2: Community Engagement
A3: Communication
A4: High Performing Culture and Workforce
A5: Operational Effectiveness
A8: Increase Graduation Rate
A9: Increase Student Performance at or Above Grade Level
A10: Increase College, Career, and Workforce Readiness
A11: Establish Internal and External Community Engagement Initiatives
A12: Improve Perceptions of RCSS
A13: Pursue and Attract Collaborative Partnerships
A14: Establish and Implement Systems of Communication for All Divisions and Schools
A15: Identify Varied Resources for Two-Way Communications
A16: Increase Effective Communication
A17: Hire and Support a Highly Effective Staff
A18: Develop and Implement Staff High Standards and Expectations
A19: Create Succession Planning
A20: Establish and Monitor Policies and Procedures for Effectiveness
A21: Increase Service Responsiveness and Timeliness
A22: Improve the Safety and Orderliness of Environments
A23: Develop a Collaborative and Efficient Budgeting Process

Sheet Checklist & Narrative
A92: 1. Schoolwide Reform Strategies that: Sec. 1114(b)(7)(A)(i-iii)
B93: a. The school will be implementing to address school needs, including a
B94: description of how such strategies will
B95: i. Provide opportunities for all children, including each of the subgroups of students
B96: (economically disadvantage students, students from major racial and ethnic groups,
B97: children with disabilities and English learners [Sec 1111©(2)]) to meet the
B98: challenging State academic standards;
A99: Economically Disadvantage: | C99: Provide additional tutoring and supplemental services based on the prioritization of the lowest Lexile scores and numeracy deficits.
A101: Foster and Homeless: | C101: Confer with social services to collaborate instructional resources to support students academic needs including computer-based tutoring. Spartan Care Center for food and clothes. GRASP counselor to provide wrap around services for students in need.
A103: ESOL: | C103: Provide additional instructional support for ESOL students such as computer based translator and software and provide training for teachers to teach ESOL students. Onsite ESOL teacher provides services daily.
A105: Migrant: | C105: Provide tutoring and appropriate instruction resources to support student literacy and math needs including computer-based tutoring
A107: Race/Ethnicity/Minority: | C107: Select and provide instructional resources that are culturally diverse.
A109: Students with Disabilities: | C109: Focus on co-teaching; focus on strategies for student with learning disabilities, provide access to the general curriculum, and provide resources and training for all SWD teachers and students.
B112: ii. Use methods and instructional strategies that strengthen the academic program
B113: in the school, increase the amount and quality of learning time, and help provide
B114: an enriched and accelerated curriculum, which may include programs, activities,
B115: and courses necessary to provide a well-rounded education;
A116: Glenn Hills High School recruit and retain effective teachers, particular in high-need subjects. We have instructional coaches to provide high quality, school-based professional development. We provide opportunities for increase learning time. We have a variety of vocational, extra curricular, and clubs to support a well rounded education.
B121: iii. Address the needs of all children in the school, but particularly the needs of those
B122: at risk of not meeting the challenging State academic standards, through activities
B123: which may include --
B127: a. counseling, school-based mental health programs, specialized instructional
B128: support services, mentoring services, and other strategies to improve students'
B129: skills outside the academic subject areas;
A130: We here at Glenn Hills High School have formed and implemented a Response-to - Intervention Team and strategies that allow for early identification of students with learning or behavioral needs and to provide a tiered response based on those needs. We have incorporated after school and Saturday tutoring and intervention to help remediate those students who are in need of extra help. We have implemented credit recovery and grade recovery online courses to help students recover credit.
A133: Glenn Hills High School provides counseling and social work services for students in need of these services. We have a partnership with Serenity to provide for mental health services and we even house a probation officer to offer family support for at-risk students. Outside counselors and therapists are provided space and time to meet with students who need these supports. Our in house guidance counselors provide class and individual advisement on academic, social, and emotional issues. We often confer with social services to collaborate instructional resources to support students academic needs. We have a parent facilitator, as well as a family service facilitator to assist families with a variety of issues/concerns.
B137: b. Preparation for and awareness of opportunities for postsecondary education
B138: and the workforce, which may include career and technical education programs
B139: and broadening secondary school students' access to coursework to earn
B140: postsecondary credit while still in high school (such as Advanced Placement,
B141: International Baccalaureate, dual or concurrent enrollment,
B142: or early college high schools);
A143: We have activities designed to increase access and prepare students for success in high-quality advanced coursework to earn postsecondary credit while in high school (AP classes, gifted classes with gifted endorsed teachers, Dual enrollment, and MOWR, HUB classes for cyber security and occupational safety, EOPA certifications to prepare for postsecondary education and the workforce, Work Based learning program, etc.).
B146: e. (Elementary ONLY) strategies for assisting preschool children in the transition
B147: from early childhood education.
B149: (Middle and High School ONLY) If a middle or high school, describe how the
B150: school will implement strategies to facilitate effective transitions for students
B151: from middle grades to high school and from high school to postsecondary
B152: education including, if applicable -- i. Through coordination with institutions
B153: of higher education, employers, and other local partners; and ii. Through
B154: increased student access to early college high school or dual or concurrent
B155: enrollment opportunities, or career counseling to identify student interests and
B156: skills. Sec. 1112(b)(10).
A157: For transitions from middle school to high school, GHHS counselors meet with 8th grade students to discuss pathways, course selection, and scheduling. We are implementing a induction course for all rising freshmen that will focus on many of the issues/pitfalls associated with entering high schoo. In additon, we will also offer an health fair event for our incoming Freshmen. Freshmen meet periodically with our counselors to monitor progress and stay on track for graduation. We have activities designed to increase access and prepare students for success in high-quality advanced coursework to earn postsecondary credit while in high school (AP classes, gifted classes with gifted endorsed teachers, Dual enrollment, and MOWR, HUB classes for cyber security and occupational safety, EOPA certifications to prepare for postsecondary education and the workforce, Work Based learning program, etc.). We conduct information parent nights to discuss MOWR. We have motivational Fridays with guest speakers to talk to students about life after hgih school.
A162: 2. ESSA Requirements to include in your Schoolwide Plan
B163: a. Define how your interventions are evidence-based; or other effective strategies to
B164: improve student achievement. Sec. 1111(d)(B).
A165: Our interventions: Dual Enrollment, Credit Recovery, RTI, etc. have shown to improve student achievement through our graduation rate and number of students receiving college credits. Home visits, social work, and counseling have shown that more students come to school when they have some one to care about them or someone to talk to. Credit recovery opportunities have also helped to increase our graduation rate.
A166: See Software Logic Model
A167: See Instructional Coach Logic Model
A168: See Title I Tutoring Program Logic Model
A169: See Title I Class Size Reduction Logic Model
A170: See Title I Supplemental Teacher Logic Model
A171: See Title I Paraprofessional Logic Model
A172: See Behavior Logic Model
A173: See Building Parent Capacity Logic Model
A174: See Building Staff Capacity Logic Model
B178: b. Describe how the school will use and implement effective parent and family
B179: engagement strategies under Section 1116, Sec. 1112(b)(7), and Sec. 1112(e)(3)(C) for
B180: parents of English Learners.
A181: Glenn Hills High School will build a connection - We will know the school's as well as the district's EL population. We will integrate cultural traditions into the school schedule and environment. We will create a welcoming environment that is reflective of the cultural identify of the student population, including lessons, classroom materials, and workforce diversity. We will build personal connections through specialized events, neighborhood visits, and ambassador programs and materials in students' native languages. We will harness the power to reach our students to computer-based assessments and recognize and learn from parents.

Sheet Artifacts List

Sheet SIP Glossary
